bitfinex/quotes_SOLUSD_20220113
["timestamp","ask_amount","ask_price","bid_price","bid_amount"]
[1642081345997,2.836,154.7,154.62,9.6996]
[1642081347398,0.25,154.7,154.62,9.6996]
[1642081347630,50.37011477,154.71,154.62,9.6996]
[1642081349301,60.07051477,154.71,154.61,19.0402]
[1642081351105,60.07051477,154.71,154.61,9.34]
[1642081351804,125.24051477,154.71,154.61,9.34]
[1642081352206,125.24051477,154.71,154.61,19.0402]
[1642081353709,125.24051477,154.71,154.61,9.34]
[1642081355536,124.99051477,154.71,154.61,9.34]
[1642081355938,1.819636,154.7,154.61,9.34]
[1642081356148,67.756,154.69,154.61,9.34]
[1642081356841,73.756,154.69,154.61,9.34]
[1642081357141,74.006,154.69,154.6,9.7008]
[1642081357339,83.7072,154.69,154.59,9.7015]
[1642081357539,85.526836,154.69,154.59,9.7015]
[1642081358438,1.819636,154.68,154.59,9.7015]
[1642081358640,2.586,154.67,154.53,9.34]
[1642081358838,153.2684,154.67,154.51,11.18888117]
[1642081359043,238.2544,154.67,154.51,11.18888117]
[1642081359238,6.75674189,154.66,154.51,11.18888117]
[1642081359439,2.587,154.65,154.51,11.18888117]
[1642081359637,9.7061,154.62,154.52,9.7056]
[1642081359838,2.587,154.61,154.52,9.7056]
[1642081360038,6.25,154.61,154.52,9.7056]
[1642081360241,8.837,154.61,154.52,9.7056]
[1642081360538,6.25,154.61,154.52,9.7056]
[1642081360738,6.25,154.61,154.51,9.34]
[1642081360938,15.9561,154.61,154.49,1.91175417]
[1642081361138,4.23799521,154.6,154.49,1.91175417]
[1642081361338,51.462,154.58,154.49,1.91175417]
[1642081361538,65.17,154.56,154.45,3.67683101]
[1642081361742,24.70458222,154.55,154.48,1.8450599]
[1642081361938,95.21858222,154.55,154.48,1.8450599]
[1642081362138,1.64999521,154.54,154.48,1.8450599]
[1642081362340,2.588,154.53,154.48,1.8450599]
[1642081362539,2.838,154.53,154.48,1.8450599]
[1642081362739,8.838,154.53,154.48,1.8450599]
[1642081363339,8.838,154.53,154.44,22.72678087]
[1642081363543,6.25,154.53,154.44,19.04994986]
[1642081363740,9.7132,154.51,154.44,19.04994986]
[1642081363940,15.7132,154.51,154.44,19.04994986]
[1642081364242,6.25,154.51,154.44,19.04994986]
[1642081364440,0.25,154.51,154.44,19.29994986]
[1642081364742,90.72,154.54,154.44,29.01044986]
[1642081364743,2.589,154.54,154.44,29.01044986]
[1642081364940,0.25,154.54,154.44,29.01044986]
[1642081365139,6.25,154.54,154.44,29.01044986]
[1642081365340,6.0,154.54,154.44,29.01044986]
[1642081365540,88.5063,154.59,154.44,29.01044986]
[1642081365740,11.928,154.61,154.45,9.34]
[1642081365940,97.3106,154.61,154.5,9.7066]
[1642081366342,97.3106,154.61,154.5,9.9566]
[1642081366641,117.06990463,154.61,154.51,22.69853896]
[1642081367040,123.06990463,154.61,154.51,32.65463896]
[1642081367442,84.264,154.61,154.51,32.65463896]
[1642081367642,22.7362,154.63,154.51,41.99463896]
[1642081367846,2.587,154.64,154.51,41.99463896]
[1642081368042,2.587,154.64,154.51,47.99463896]
[1642081368542,28.76266138,154.66,154.51,49.16287817]
[1642081368943,28.76266138,154.66,154.51,47.99463896]
[1642081369345,25.13361505,154.66,154.51,47.99463896]
[1642081369543,25.38361505,154.66,154.51,47.99463896]
[1642081370146,35.08681505,154.66,154.51,47.99463896]
[1642081370547,41.08681505,154.66,154.51,47.99463896]
[1642081371348,40.83681505,154.66,154.51,47.99463896]
[1642081372249,34.83681505,154.66,154.51,47.99463896]
[1642081372448,25.13361505,154.66,154.51,49.42287817]
[1642081372648,25.13361505,154.66,154.51,49.16287817]
[1642081372848,25.13361505,154.66,154.51,47.99463896]
[1642081373049,25.38361505,154.66,154.51,47.74463896]
[1642081373249,31.38361505,154.66,154.51,47.74463896]
[1642081374149,35.08681505,154.66,154.51,47.74463896]
[1642081374350,25.38361505,154.66,154.51,47.99463896]
[1642081374951,25.38361505,154.66,154.51,48.25463896]
[1642081375152,2.587,154.66,154.52,65.17]
[1642081375354,2.587,154.66,154.59,9.6995]
[1642081375652,2.587,154.66,154.59,17.8995]
[1642081375852,3.62904633,154.69,154.59,17.8995]
[1642081376051,3.62904633,154.69,154.6,20.65095427]
[1642081376456,3.62904633,154.69,154.64,9.6976]
[1642081377055,6.21504633,154.71,154.64,9.6976]
[1642081377253,3.62904633,154.71,154.64,9.6976]
[1642081377556,3.62904633,154.71,154.64,9.9476]
[1642081378456,0.25,154.71,154.64,9.9476]
[1642081378656,85.244,154.73,154.64,9.9476]
[1642081378857,75.904,154.73,154.64,9.9476]
[1642081379158,81.904,154.73,154.64,9.9476]
[1642081379562,6.75264744,154.84,154.68,89.0]
[1642081379760,403.96212614,154.82,154.75,2.62533339]
[1642081379956,403.96212614,154.82,154.76,9.34]
[1642081380156,403.96212614,154.82,154.77,34.875]
[1642081380356,23.01089448,154.81,154.78,9.34]
[1642081380657,9.14607747,154.85,154.78,9.34]
[1642081380856,2.584,154.84,154.78,25.0289]
[1642081381355,2.583,154.88,154.78,25.2789]
[1642081381756,22.14123081,154.87,154.78,19.0289]
[1642081381957,2.583,154.86,154.78,9.34]
[1642081382557,18.2744,154.86,154.78,0.0001]
[1642081382758,18.5244,154.86,154.78,0.0001]
[1642081382959,18.5244,154.86,154.75,2.62533339]
[1642081383157,27.8644,154.86,154.75,2.62533339]
[1642081383357,65.17,154.85,154.75,2.62533339]
[1642081383559,9.6941,154.8,154.75,2.62533339]
[1642081383758,2.584,154.79,154.75,2.62533339]
[1642081383959,2.834,154.79,154.75,3.339e-05]
[1642081384159,6.25,154.79,154.75,3.339e-05]
[1642081384760,22.38057509,154.78,154.75,3.339e-05]
[1642081384959,8.64400001,154.77,154.75,3.339e-05]
[1642081385158,18.33950001,154.77,154.75,3.339e-05]
[1642081385360,18.58950001,154.77,154.73,6.74993376]
[1642081385561,24.58950001,154.77,154.73,6.74993376]
[1642081386161,24.58950001,154.77,154.66,9.34]
[1642081386361,24.58950001,154.77,154.64,2.585]
[1642081386362,103.12730001,154.77,154.64,2.585]
[1642081386562,118.59330001,154.77,154.64,2.585]
[1642081387162,142.43090001,154.77,154.64,2.585]
[1642081388069,136.30490001,154.77,154.64,2.585]
[1642081389062,136.30490001,154.77,154.64,2.835]
[1642081389266,130.30490001,154.77,154.64,9.698]
[1642081389967,130.05490001,154.77,154.64,9.948]
[1642081390564,126.71490001,154.77,154.64,15.948]
[1642081391068,126.71490001,154.77,154.64,9.948]
[1642081391965,65.17,154.76,154.64,9.948]
[1642081392166,9.6968,154.73,154.64,9.948]
[1642081392568,15.9468,154.73,154.64,9.948]
[1642081393569,18.38557271,154.72,154.64,9.948]
[1642081393767,28.08287271,154.72,154.64,9.948]
[1642081393967,28.33287271,154.72,154.64,9.948]
[1642081394167,34.33287271,154.72,154.64,9.948]
[1642081394366,34.33287271,154.72,154.64,9.698]
[1642081395269,34.33287271,154.72,154.63,9.6987]
[1642081396871,2.586,154.71,154.63,9.6987]
[1642081397069,18.5342,154.71,154.63,9.6987]
[1642081399381,83.7042,154.71,154.61,9.6996]
[1642081399582,183.0144,154.71,154.61,9.9496]
[1642081399980,183.0144,154.71,154.61,9.6996]
[1642081400184,183.0144,154.71,154.59,9.34]
[1642081400380,234.4764,154.71,154.59,9.34]
[1642081400580,241.8314,154.71,154.59,9.34]
[1642081400780,251.1714,154.71,154.55,9.34]
[1642081400988,251.1714,154.71,154.55,15.34]
[1642081402185,251.1714,154.71,154.56,9.7031]
[1642081404510,243.8164,154.71,154.56,9.7031]
[1642081409521,243.8164,154.71,154.53,2.586]
[1642081409722,243.8164,154.71,154.48,11.926]
[1642081409723,6.29478813,154.7,154.48,11.926]
[1642081409922,6.29478813,154.7,154.48,9.34]
[1642081409923,9.7082,154.59,154.48,9.34]
[1642081410123,77.4662,154.59,154.48,9.34]
[1642081410324,77.7162,154.59,154.48,9.34]
[1642081410526,17.47005216,154.58,154.48,9.34]
[1642081410724,91.21125216,154.58,154.48,9.34]
[1642081410922,97.46125216,154.58,154.48,9.34]
[1642081412224,9.7087,154.53,154.48,9.34]
[1642081412525,15.9587,154.53,154.46,9.7094]
[1642081413524,15.9587,154.53,154.46,9.9594]
[1642081414125,15.9587,154.53,154.46,9.7094]
[1642081414326,15.9587,154.53,154.44,2.588]
[1642081414528,15.9587,154.53,154.42,9.34]
[1642081414727,18.5477,154.53,154.42,9.34]
[1642081415229,20.15618429,154.52,154.43,19.06917979]
[1642081415427,65.17,154.51,154.4,2.589]
[1642081415630,9.7142,154.46,154.37,9.34]
[1642081416030,9.9642,154.46,154.37,9.34]
[1642081416528,9.9642,154.46,154.38,23.4324099]
[1642081416728,9.9642,154.46,154.38,32.7724099]
[1642081416930,9.9642,154.46,154.38,39.0224099]
[1642081417130,9.7142,154.46,154.38,48.7368099]
[1642081417531,9.7123,154.47,154.38,48.7368099]
[1642081418034,9.9623,154.47,154.38,48.4868099]
[1642081419234,15.9623,154.47,154.38,48.4868099]
[1642081419436,15.9623,154.47,154.38,48.7368099]
[1642081420738,15.7123,154.47,154.38,48.7368099]
[1642081420937,77.8694,154.5,154.38,48.7368099]
[1642081421135,77.8694,154.5,154.44,9.7092]
[1642081421336,102.2284,154.51,154.44,9.7092]
[1642081422138,111.9384,154.51,154.41,2.589]
[1642081422339,117.9384,154.51,154.41,2.839]
[1642081422667,118.1884,154.51,154.41,2.839]
[1642081422866,118.1884,154.51,154.41,8.839]
[1642081423068,117.9384,154.51,154.41,2.839]
[1642081423270,117.9384,154.51,154.44,21.66270671]
[1642081424269,120.5274,154.51,154.44,21.66270671]
[1642081424470,120.7774,154.51,154.44,21.66270671]
[1642081425270,118.1884,154.51,154.44,21.66270671]
[1642081427371,120.7774,154.51,154.44,21.66270671]
[1642081428275,120.7774,154.51,154.43,9.7112]
[1642081428479,120.7774,154.51,154.42,9.7118]
[1642081429479,120.7774,154.51,154.42,28.06527387]
[1642081431379,120.7774,154.51,154.4,9.34]
[1642081431380,120.7774,154.51,154.41,9.7126]
[1642081431580,185.9474,154.51,154.37,36.3861]
[1642081431886,89.9544,154.5,154.38,6.0]
[1642081432080,9.7153,154.44,154.37,8.589]
[1642081432279,26.84728395,154.44,154.37,8.589]
[1642081432480,33.09728395,154.44,154.37,8.589]
[1642081432881,33.09728395,154.44,154.37,2.589]
[1642081433911,98.26728395,154.44,154.37,2.589]
[1642081434082,9.7179,154.4,154.37,2.589]
[1642081434482,15.9679,154.4,154.37,2.589]
[1642081434683,6.06000001,154.39,154.37,2.589]
[1642081434883,6.06000001,154.39,154.34,23.63102419]
[1642081435084,9.7181,154.38,154.34,23.63102419]
[1642081435489,9.9681,154.38,154.34,23.63102419]
[1642081436691,9.9681,154.38,154.31,9.34]
[1642081436890,15.9681,154.38,154.31,9.34]
[1642081437692,82.60553869,154.37,154.29,2.591]
[1642081437893,9.7222,154.33,154.29,2.591]
[1642081438092,17.0242,154.33,154.29,2.591]
[1642081438394,23.0242,154.33,154.29,2.591]
[1642081438993,25.6162,154.33,154.29,2.591]
[1642081439493,19.3662,154.33,154.3,23.58781157]
[1642081439693,6.06000001,154.32,154.3,23.58781157]
[1642081439893,126.3184,154.39,154.3,23.83781157]
[1642081441421,9.7187,154.38,154.3,33.55741157]
[1642081441620,2.591,154.46,154.31,10.50910922]
[1642081441818,2.591,154.46,154.31,13.10010922]
[1642081442018,212.1772,154.5,154.32,1.16910922]
[1642081442218,212.1772,154.5,154.33,9.34]
[1642081442620,22.89989006,154.49,154.33,15.59]
[1642081442821,2.59,154.48,154.33,15.59]
[1642081443022,9.7148,154.45,154.36,9.7159]
[1642081443320,9.7148,154.45,154.36,33.14078799]
[1642081443520,15.7148,154.45,154.36,33.39078799]
[1642081443723,26.0317,154.48,154.36,33.39078799]
[1642081444120,32.0317,154.48,154.36,34.55989721]
[1642081444320,32.0317,154.48,154.36,40.55989721]
[1642081444820,32.0317,154.48,154.36,33.39078799]
[1642081445020,29.4417,154.48,154.36,35.98078799]
[1642081445221,9.7136,154.47,154.36,35.98078799]
[1642081445620,15.7136,154.47,154.36,35.98078799]
[1642081446323,18.3036,154.47,154.36,33.14078799]
[1642081446720,18.5536,154.47,154.36,33.14078799]
[1642081447120,18.5536,154.47,154.36,39.14078799]
[1642081447521,18.5536,154.47,154.36,39.39078799]
[1642081449924,18.5536,154.47,154.36,33.39078799]
[1642081450125,18.5536,154.47,154.36,39.39078799]
[1642081450327,18.5536,154.47,154.36,33.39078799]
[1642081450525,18.5536,154.47,154.36,39.39078799]
[1642081451024,18.5536,154.47,154.36,33.39078799]
[1642081453229,15.9636,154.47,154.36,33.39078799]
[1642081454729,15.9636,154.47,154.36,33.14078799]
[1642081456031,15.9636,154.47,154.36,33.39078799]
[1642081456429,15.9636,154.47,154.36,41.98078799]
[1642081456637,15.9636,154.47,154.36,35.98078799]
[1642081457433,15.9636,154.47,154.36,41.98078799]
[1642081459032,23.4417,154.48,154.37,9.34]
[1642081459236,100.9121,154.5,154.42,9.7116]
[1642081459633,100.9121,154.5,154.42,9.9616]
[1642081460044,100.9121,154.5,154.42,30.47888991]
[1642081460440,107.1621,154.5,154.42,9.9616]
[1642081460942,106.9121,154.5,154.42,9.9616]
[1642081461139,116.6239,154.5,154.42,9.9616]
[1642081462645,116.8739,154.5,154.38,11.93]
[1642081462844,9.7145,154.46,154.38,11.93]
[1642081463044,15.9645,154.46,154.38,11.93]
[1642081463446,21.12664569,154.45,154.38,11.93]
[1642081463647,21.12664569,154.45,154.38,21.6447]
[1642081463846,27.37664569,154.45,154.38,21.6447]
[1642081465146,37.09174569,154.45,154.38,2.59]
[1642081465348,2.59,154.44,154.33,9.34]
[1642081465549,84.1051,154.44,154.31,5.52658448]
[1642081465749,24.544,154.43,154.31,5.52658448]
[1642081465948,2.591,154.42,154.31,5.52658448]
[1642081466148,2.591,154.42,154.31,28.43391019]
[1642081466349,8.841,154.42,154.31,22.90732571]
[1642081466549,8.841,154.42,154.31,26.60220655]
[1642081467150,18.5579,154.42,154.31,3.69488084]
[1642081467350,65.17,154.41,154.31,3.69488084]
[1642081467552,2.591,154.4,154.31,3.69488084]
[1642081467771,2.591,154.4,154.3,9.34]
[1642081467972,8.841,154.4,154.3,9.34]
[1642081468173,9.7197,154.38,154.3,19.0597]
[1642081468572,15.9697,154.38,154.3,19.0597]
[1642081468973,15.9697,154.38,154.3,19.3097]
[1642081469372,15.7197,154.38,154.3,19.3097]
[1642081469973,15.7197,154.38,154.31,3.69781494]
[1642081470173,18.3107,154.38,154.31,3.69781494]
[1642081470372,83.4807,154.38,154.31,3.69781494]
[1642081470773,83.7307,154.38,154.31,3.69781494]
[1642081470972,83.7307,154.38,154.28,3.69813629]
[1642081472076,83.7307,154.38,154.28,3.69480848]
[1642081472973,83.7307,154.38,154.27,19.0613]
[1642081473575,83.7307,154.38,154.26,16.01143629]
[1642081473774,79.8326,154.37,154.26,6.28913629]
[1642081473974,9.7227,154.33,154.26,2.591]
[1642081474475,23.88612285,154.32,154.26,2.841]
[1642081474677,24.13612285,154.32,154.26,2.591]
[1642081474875,30.13612285,154.32,154.26,2.591]
[1642081475075,39.85942285,154.32,154.26,2.591]
[1642081475278,39.85942285,154.32,154.28,0.02]
[1642081475478,42.45142285,154.32,154.28,0.04]
[1642081475677,39.85942285,154.32,154.28,0.04]
[1642081476477,39.60942285,154.32,154.28,0.04]
[1642081477079,29.88612285,154.32,154.28,0.04]
[1642081478381,6.0,154.32,154.28,0.04]
[1642081478583,28.5753,154.34,154.28,0.04]
[1642081479386,51.80071277,154.34,154.28,0.04]
[1642081479985,52.05071277,154.34,154.28,0.04]
[1642081480186,9.722,154.32,154.28,0.04]
[1642081480587,15.722,154.32,154.28,0.04]
[1642081481590,15.972,154.32,154.28,0.04]
[1642081481991,15.722,154.32,154.28,0.04]
[1642081482588,15.972,154.32,154.28,0.04]
[1642081485191,9.972,154.32,154.28,0.04]
[1642081485391,15.972,154.32,154.28,0.04]
[1642081485591,2.592,154.31,154.28,0.04]
[1642081485991,9.7243,154.29,154.28,0.04]
[1642081486422,15.9743,154.29,154.28,0.04]
[1642081486595,23.8443,154.29,154.28,0.04]
[1642081486894,23.8443,154.29,154.24,1.84196669]
[1642081486895,62.0,154.28,154.24,1.84196669]
[1642081487095,68.25,154.28,154.24,1.84196669]
[1642081487295,17.56088043,154.27,154.23,1.84196669]
[1642081487500,23.81088043,154.27,154.23,1.84196669]
[1642081487696,9.7277,154.26,154.23,1.84196669]
[1642081487896,6.06000001,154.25,154.23,1.84196669]
[1642081488095,12.31000001,154.25,154.23,1.84196669]
[1642081488497,12.06000001,154.25,154.21,1.84196669]
[1642081489099,9.7282,154.24,154.21,1.84196669]
[1642081489300,3.02780004,154.23,154.21,1.84196669]
[1642081489501,3.03219997,154.22,154.21,1.84196669]
[1642081490800,3.03219997,154.22,154.21,41.84196669]
[1642081491002,9.7262,154.26,154.21,40.0]
[1642081491503,15.7262,154.26,154.21,40.0]
[1642081491903,15.7262,154.26,154.19,1.84196669]
[1642081492203,15.7262,154.26,154.19,11.56796669]
[1642081492607,15.7262,154.26,154.2,1.84196669]
[1642081493007,15.7262,154.26,154.2,2.09196669]
[1642081494034,15.7262,154.26,154.2,1.84196669]
[1642081494537,15.7262,154.26,154.22,1.84196669]
[1642081495438,15.7262,154.26,154.21,1.84196669]
[1642081495643,15.9762,154.26,154.21,1.84196669]
[1642081495939,15.7262,154.26,154.21,2.09196669]
[1642081497638,15.7262,154.26,154.22,1.84196669]
[1642081498038,15.7262,154.26,154.22,2.09196669]
[1642081498338,6.0,154.26,154.22,2.09196669]
[1642081498539,15.7253,154.27,154.22,2.09196669]
[1642081499139,15.7253,154.27,154.23,1.84196669]
[1642081499540,15.9753,154.27,154.23,1.84196669]
[1642081500544,6.0,154.27,154.23,1.84196669]
[1642081500742,2.593,154.3,154.23,1.84196669]
[1642081500942,23.808,154.4,154.23,11.18196669]
[1642081500943,26.6636,154.33,154.23,11.18196669]
[1642081501244,24.0706,154.33,154.23,11.18196669]
[1642081501445,30.0706,154.33,154.23,11.18196669]
[1642081501644,39.792,154.33,154.28,9.721]
[1642081502449,40.042,154.33,154.28,9.721]
[1642081503645,30.3206,154.33,154.28,9.721]
[1642081504346,2.592,154.32,154.24,3.69813629]
[1642081504546,8.842,154.32,154.24,3.69813629]
[1642081504846,75.66199521,154.32,154.24,3.69813629]
[1642081505045,9.7249,154.28,154.24,3.69813629]
[1642081505246,2.593,154.27,154.23,2.592]
[1642081505548,2.843,154.27,154.23,2.592]
[1642081505747,39.45824369,154.4,154.24,89.0]
[1642081505947,6.933,154.52,154.24,89.0]
[1642081505948,3.42665092,154.43,154.31,116.73]
[1642081506148,75.2894,154.49,154.43,3.33966023]
[1642081506347,2.591,154.46,154.43,3.33966023]
[1642081506546,2.589,154.5,154.44,3.03219997]
[1642081507147,2.589,154.5,154.44,35.6084553]
[1642081507349,81.3636,154.54,154.44,35.8584553]
[1642081507548,81.3636,154.54,154.44,45.5688553]
[1642081507747,78.7746,154.54,154.44,48.1578553]
[1642081508154,78.7746,154.54,154.47,116.73]
[1642081508348,2.588,154.53,154.48,9.34]
[1642081508547,78.7746,154.54,154.48,9.34]
[1642081508949,2.588,154.56,154.48,9.59]
[1642081509151,144.1009,154.61,154.49,2.588]
[1642081509358,144.1009,154.61,154.5,9.34]
[1642081509660,144.1009,154.61,154.51,9.34]
[1642081509857,23.07231016,154.6,154.52,9.34]
[1642081510059,2.587,154.59,154.52,9.34]
[1642081511459,2.587,154.59,154.49,9.34]
[1642081512056,68.007,154.59,154.49,9.34]
[1642081518201,77.7162,154.59,154.49,9.34]
[1642081519300,12.5462,154.59,154.49,9.34]
[1642081519503,2.587,154.59,154.49,9.34]
[1642081520402,2.587,154.59,154.49,9.59]
[1642081520602,2.587,154.59,154.49,19.2974]
[1642081520803,0.25,154.59,154.49,19.2974]
[1642081521005,25.91031016,154.6,154.49,19.2974]
[1642081521804,25.91031016,154.6,154.5,23.13535913]
[1642081522003,2.588,154.6,154.51,9.34]
[1642081522205,77.06724791,154.61,154.53,9.7046]
[1642081522606,77.06724791,154.61,154.54,2.587]
[1642081522908,77.06724791,154.61,154.54,11.927]
[1642081523105,0.72434791,154.61,154.54,12.177]
[1642081523957,0.72434791,154.61,154.54,9.59]
[1642081524107,0.72434791,154.61,154.54,19.2945]
[1642081524307,0.72434791,154.61,154.54,27.8815]
[1642081526311,1.42625012,154.68,154.55,89.0]
[1642081526510,1.42625012,154.68,154.61,9.6999]
[1642081526810,1.42625012,154.68,154.61,38.55890585]
[1642081527010,78.2752,154.7,154.61,38.55890585]
[1642081527210,75.6882,154.7,154.61,46.64790585]
[1642081527410,75.6882,154.7,154.61,52.89790585]
[1642081527611,2.586,154.74,154.61,52.89790585]
[1642081527809,9.6978,154.77,154.62,2.586]
[1642081527810,127.9968,154.76,154.62,2.586]
[1642081528010,2.586,154.73,154.64,18.73010544]
[1642081528210,2.585,154.75,154.64,28.42810544]
[1642081530312,2.585,154.75,154.64,9.698]
[1642081530514,12.2833,154.75,154.63,19.0389]
[1642081530713,12.5333,154.75,154.63,19.0389]
[1642081532114,12.5333,154.75,154.63,9.34]
[1642081534425,65.17,154.74,154.63,9.34]
[1642081534624,14.64985665,154.73,154.63,9.34]
[1642081535026,24.59955665,154.73,154.63,9.34]
[1642081535929,14.89985665,154.73,154.63,19.0388]
[1642081537128,24.59905665,154.73,154.63,19.0388]
[1642081537730,24.59905665,154.73,154.63,9.34]
[1642081540653,24.59905665,154.73,154.63,19.0388]
[1642081543662,65.17,154.72,154.63,19.0388]
[1642081543859,2.586,154.71,154.63,19.0388]
[1642081544063,2.836,154.71,154.63,37.22274592]
[1642081544259,0.25,154.71,154.63,37.22274592]
[1642081544661,0.25,154.71,154.63,43.22274592]
[1642081544860,0.25,154.71,154.63,37.22274592]
[1642081545260,21.41355841,154.74,154.63,37.22274592]
[1642081545460,2.585,154.73,154.63,43.22274592]
[1642081545960,2.835,154.73,154.63,43.22274592]
[1642081546568,2.835,154.73,154.63,25.0388]
[1642081547169,2.835,154.73,154.63,19.0388]
[1642081547466,2.835,154.73,154.63,25.0388]
[1642081550414,2.335,154.73,154.63,19.0388]
[1642081550814,2.335,154.73,154.63,25.0388]
[1642081551014,2.335,154.73,154.63,19.0388]
[1642081551214,2.335,154.73,154.6,9.34]
[1642081551418,65.17,154.71,154.6,9.34]
[1642081551621,2.586,154.7,154.6,9.34]
[1642081552014,8.51594554,154.69,154.6,9.34]
[1642081552216,9.7028,154.67,154.6,9.34]
[1642081552416,2.586,154.66,154.6,9.34]
[1642081552816,2.836,154.66,154.6,9.34]
[1642081553216,12.5384,154.66,154.6,9.34]
[1642081553416,0.25,154.66,154.6,9.34]
[1642081553948,2.836,154.68,154.6,9.34]
[1642081554617,2.836,154.68,154.6,37.54220625]
[1642081555919,2.586,154.68,154.6,37.54220625]
[1642081556320,2.586,154.69,154.6,37.54220625]
[1642081556919,78.2644,154.7,154.6,43.79220625]
[1642081557118,78.2644,154.7,154.6,46.37820625]
[1642081557319,2.586,154.71,154.6,46.37820625]
[1642081557922,5.32914924,154.72,154.6,46.37820625]
[1642081558323,3.70011562,154.7,154.6,46.37820625]
[1642081559723,3.70011562,154.74,154.6,46.37820625]
[1642081560524,3.70011562,154.74,154.6,47.55689147]
[1642081560924,3.70011562,154.74,154.6,46.37820625]
[1642081561328,3.65481562,154.74,154.6,46.37820625]
[1642081561626,3.65481562,154.74,154.6,47.55689147]
[1642081561828,3.90481562,154.74,154.6,61.08925562]
[1642081563030,3.65481562,154.74,154.6,61.08925562]
[1642081563228,2.586,154.75,154.6,61.08925562]
[1642081563428,32.26354924,154.76,154.6,61.08925562]
[1642081563932,26.9344,154.76,154.6,61.08925562]
[1642081564333,36.6308,154.76,154.6,61.08925562]
[1642081564932,36.8808,154.76,154.6,61.08925562]
[1642081565733,27.1844,154.76,154.6,61.08925562]
[1642081566237,27.1844,154.76,154.6,177.81925562]
[1642081567635,27.1844,154.76,154.6,190.04050028]
[1642081567837,26.9344,154.76,154.6,190.04050028]
[1642081568040,26.9344,154.76,154.6,197.42364133]
[1642081568536,26.9344,154.76,154.61,116.73]
[1642081568739,26.9344,154.76,154.63,19.52137927]
[1642081568961,26.9344,154.76,154.7,19.096056]
[1642081569160,2.586,154.76,154.7,19.096056]
[1642081569362,2.836,154.76,154.7,19.096056]
[1642081570560,2.836,154.76,154.7,28.790456]
[1642081571361,2.586,154.76,154.7,28.790456]
[1642081571764,110.24094924,154.77,154.7,28.790456]
[1642081572262,32.13494924,154.77,154.7,28.790456]
[1642081573266,41.83014924,154.77,154.69,9.6952]
[1642081573464,41.83014924,154.77,154.68,9.34]
[1642081573666,36.501,154.77,154.68,9.34]
[1642081573865,36.751,154.77,154.68,9.34]
[1642081574466,54.80429739,154.77,154.68,9.34]
[1642081575367,54.80429739,154.77,154.66,9.6966]
[1642081575567,79.45709739,154.77,154.66,9.6966]
[1642081575770,79.45709739,154.77,154.65,9.34]
[1642081575972,65.17,154.76,154.65,9.34]
[1642081576172,9.698,154.73,154.65,9.34]
[1642081576571,9.948,154.73,154.65,9.34]
[1642081577169,9.948,154.73,154.65,19.0377]
[1642081579472,0.25,154.73,154.65,19.0377]
[1642081579875,35.0955,154.75,154.65,19.0377]
[1642081580072,32.5105,154.75,154.65,19.0377]
[1642081580677,32.5105,154.75,154.66,18.85601488]
[1642081580874,32.5105,154.75,154.66,28.55271488]
[1642081581276,32.5105,154.75,154.66,37.89271488]
[1642081585883,32.5105,154.75,154.66,19.0367]
[1642081587088,6.31944297,154.74,154.66,19.0367]
[1642081587283,16.01644297,154.74,154.66,19.0367]
[1642081587487,16.26644297,154.74,154.66,9.34]
[1642081589385,16.26644297,154.74,154.66,19.0371]
[1642081590587,16.26644297,154.74,154.66,9.34]
[1642081590788,18.85144297,154.74,154.66,9.34]
[1642081591188,9.947,154.74,154.66,9.34]
[1642081592291,9.947,154.74,154.66,19.037]